Workbook

Sheet Main
B2: Bank Interest Batch Upload
B5: * Step 1: Connect to the server
B11: * Step 2: Select or Key in parameters
B13: Bank Account No: | C13: 0404-000712-01-9
B15: Date: | C15: 2018-10-31
B17: Export Path: | C17: thisworkbook.path
B19: Bank Interest GL: | C19: 636002
B21: WHT GL: | C21: 710130
B23: * Step 3: Import and Calculate

Sheet Work
A2: =Data!D2 & " INTEREST" -> IDR INTEREST
B5: INTEREST/ MONTHLY | C5: PORTFOLIO | D5: =Data!D2 & " ENDING CASH BALANCE" -> IDR ENDING CASH BALANCE | E5: =Data!D2 & " BALANCE / CLIENT" -> IDR BALANCE / CLIENT | F5: INT RECEIVED | G5: INT RECEIVED / CLIENT | H5: WHT (20%) | I5: WHT (20%) / CLIENT | J5: NET INT RECEIVED | K5: CASH BAL | L5: CASH BAL / CLIENT | M5: FUND CURRENCY | N5: EXCHANGE RATE | O5: FX INT RECEIVED | P5: FX WHT | Q5: FX NET INT RECEIVED
G6: (GROSS INT)
B8: =DDate -> 2018-10-31 | C8: =Data!C2 -> 01-0001 | D8: =SUM(E8:E29) -> 1.309973745e+10 | E8: =Data!H2 -> 823432905.4 | F8: 11125745 | G8: =+ROUND(($E8/$D$8)*$F$8,2) -> 699350.24 | H8: -2225149 | I8: =+ROUND(($G8/$F$8)*$H$8,2) -> -139870.05 | J8: =+G8+I8 -> 559480.19 | K8: =+D8+F8+H8 -> 1.310863805e+10 | L8: =+E8+G8+I8 -> 823992385.6 | M8: =Data!E2 -> MYR | N8: =IFERROR(1/Data!F2,0) -> 0.0002752 | O8: =ROUND(G8*N8,2) -> 192.46 | P8: =ROUND(I8*N8,2) -> -38.49 | Q8: =SUM(O8:P8) -> 153.97
C9: =Data!C3 -> 01-0007 | E9: =Data!H3 -> 94163001.83 | G9: =+ROUND(($E9/$D$8)*$F$8,2) -> 79973.63 | I9: =+ROUND(($G9/$F$8)*$H$8,2) -> -15994.73 | J9: =+G9+I9 -> 63978.9 | L9: =+E9+G9+I9 -> 94226980.73 | M9: =Data!E3 -> MYR | N9: =IFERROR(1/Data!F3,0) -> 0.0002752 | O9: =ROUND(G9*N9,2) -> 22.01 | P9: =ROUND(I9*N9,2) -> -4.4 | Q9: =SUM(O9:P9) -> 17.61
C10: =Data!C4 -> 01-0019 | E10: =Data!H4 -> 3193903945 | G10: 2712616.26 | I10: -542523.25 | J10: 2170093.01 | L10: 3196074038 | M10: =Data!E4 -> MYR | N10: =IFERROR(1/Data!F4,0) -> 0.0002752 | O10: 746.51 | P10: -149.3 | Q10: 597.21
C11: =Data!C5 -> 01-0028 | E11: =Data!H5 -> 892958477.9 | G11: 758399.04 | I11: -151679.81 | J11: 606719.23 | L11: 893565197.2 | M11: =Data!E5 -> MYR | N11: =IFERROR(1/Data!F5,0) -> 0.0002752 | O11: 208.71 | P11: -41.74 | Q11: 166.97
C12: =Data!C6 -> 01-0029 | E12: =Data!H6 -> 1338622711 | G12: 1136906.37 | I12: -227381.27 | J12: 909525.1 | L12: 1339532237 | M12: =Data!E6 -> MYR | N12: =IFERROR(1/Data!F6,0) -> 0.0002752 | O12: 312.88 | P12: -62.58 | Q12: 250.3
C13: =Data!C7 -> 02-0002 | E13: =Data!H7 -> 1813302447 | G13: 1540056.87 | I13: -308011.37 | J13: 1232045.5 | L13: 1814534493 | M13: =Data!E7 -> MYR | N13: =IFERROR(1/Data!F7,0) -> 0.0002752 | O13: 423.82 | P13: -84.76 | Q13: 339.06
C14: =Data!C8 -> 02-0008 | E14: =Data!H8 -> 249869318.1 | G14: 212216.64 | I14: -42443.33 | J14: 169773.31 | L14: 250039091.4 | M14: =Data!E8 -> MYR | N14: =IFERROR(1/Data!F8,0) -> 0.0002752 | O14: 58.4 | P14: -11.68 | Q14: 46.72
C15: =Data!C9 -> 02-0021 | E15: =Data!H9 -> 611338763 | G15: 519216.45 | I15: -103843.29 | J15: 415373.16 | L15: 611754136.1 | M15: =Data!E9 -> MYR | N15: =IFERROR(1/Data!F9,0) -> 0.0002752 | O15: 142.89 | P15: -28.58 | Q15: 114.31
C16: =Data!C10 -> 02-0023 | E16: =Data!H10 -> 1266589803 | G16: 1075728.06 | I16: -215145.61 | J16: 860582.45 | L16: 1267450385 | M16: =Data!E10 -> MYR | N16: =IFERROR(1/Data!F10,0) -> 0.0002752 | O16: 296.04 | P16: -59.21 | Q16: 236.83
C17: =Data!C11 -> 02-0025 | E17: =Data!H11 -> 777523329.5 | G17: 660358.75 | I17: -132071.75 | J17: 528287 | L17: 778051616.5 | M17: =Data!E11 -> MYR | N17: =IFERROR(1/Data!F11,0) -> 0.0002752 | O17: 181.73 | P17: -36.35 | Q17: 145.38
C18: =Data!C12 -> 02-0062 | E18: =Data!H12 -> 156327987.6 | G18: 132771.01 | I18: -26554.2 | J18: 106216.81 | L18: 156434204.4 | M18: =Data!E12 -> MYR | N18: =IFERROR(1/Data!F12,0) -> 0.0002752 | O18: 36.54 | P18: -7.31 | Q18: 29.23
C19: =Data!C13 -> 02-0068 | E19: =Data!H13 -> 712068160.8 | G19: 604766.99 | I19: -120953.4 | J19: 483813.59 | L19: 712551974.4 | M19: =Data!E13 -> MYR | N19: =IFERROR(1/Data!F13,0) -> 0.0002752 | O19: 166.43 | P19: -33.29 | Q19: 133.14
C20: =Data!C14 -> 02-0070 | E20: =Data!H14 -> 164921355.1 | G20: 140069.44 | I20: -28013.89 | J20: 112055.55 | L20: 165033410.7 | M20: =Data!E14 -> MYR | N20: =IFERROR(1/Data!F14,0) -> 0.0002752 | O20: 38.55 | P20: -7.71 | Q20: 30.84
C21: =Data!C15 -> 05-0005 | E21: =Data!H15 -> 848322269 | G21: 720489.04 | I21: -144097.81 | J21: 576391.23 | L21: 848898660.3 | M21: =Data!E15 -> MYR | N21: =IFERROR(1/Data!F15,0) -> 0.0002752 | O21: 198.28 | P21: -39.66 | Q21: 158.62
C22: =Data!C16 -> 16-0001 | E22: =Data!H16 -> 37271817.95 | G22: 31655.35 | I22: -6331.07 | J22: 25324.28 | L22: 37297142.23 | M22: =Data!E16 -> MYR | N22: =IFERROR(1/Data!F16,0) -> 0.0002752 | O22: 8.71 | P22: -1.74 | Q22: 6.97
C23: =Data!C17 -> 16-0002 | E23: =Data!H17 -> 3285926.96 | G23: 2790.77 | I23: -558.15 | J23: 2232.62 | L23: 3288159.58 | M23: =Data!E17 -> MYR | N23: =IFERROR(1/Data!F17,0) -> 0.0002752 | O23: 0.77 | P23: -0.15 | Q23: 0.62
C24: =Data!C18 -> 16-0003 | E24: =Data!H18 -> 4370432.52 | G24: 3711.85 | I24: -742.37 | J24: 2969.48 | L24: 4373402 | M24: =Data!E18 -> MYR | N24: =IFERROR(1/Data!F18,0) -> 0.0002752 | O24: 1.02 | P24: -0.2 | Q24: 0.82
C25: =Data!C19 -> 17-0001 | E25: =Data!H19 -> 5257678.75 | G25: 4465.4 | I25: -893.08 | J25: 3572.32 | L25: 5261251.07 | M25: =Data!E19 -> MYR | N25: =IFERROR(1/Data!F19,0) -> 0.0002752 | O25: 1.23 | P25: -0.25 | Q25: 0.98
C26: =Data!C20 -> 20-0002 | E26: =Data!H20 -> 106207121.9 | G26: 90202.83 | I26: -18040.57 | J26: 72162.26 | L26: 106279284.2 | M26: =Data!E20 -> MYR | N26: =IFERROR(1/Data!F20,0) -> 0.0002752 | O26: 24.82 | P26: -4.96 | Q26: 19.86

Sheet Trustee
A2: =Data!D2&" INTEREST ("&UPPER(TEXT(DDate,"MMM")& " " & TEXT(DDate,"yyyy")&")") -> IDR INTEREST (OCT 2018)
B5: PORTFOLIO | C5: INT RECEIVED (GROSS INT) | D5: WHT | E5: NETT INT RECEIVED | F5: PAY TO ACC IDR
B7: 01-0001 | C7: 699350.24 | D7: -139870.05 | E7: 559480.19 | F7: 0404-000712-01-9
B8: DOREEN EMELDA FONG - 01-0001
B10: 01-0007 | C10: 79973.63 | D10: -15994.73 | E10: 63978.9 | F10: 0404-000712-01-9
B11: EE CHONG KOK - 01-0007
B13: 01-0019 | C13: 2712616.27 | D13: -542523.25 | E13: 2170093.02 | F13: 0404-000712-01-9
B14: LAM SOO HENG @ LAM SEO HAN - 01-0019
B16: 01-0028 | C16: 758399.04 | D16: -151679.81 | E16: 606719.23 | F16: 0404-000712-01-9
B17: LOO KOK YUEN - 01-0028
B19: 01-0029 | C19: 1136906.37 | D19: -227381.27 | E19: 909525.1 | F19: 0404-000712-01-9
B20: LIM PAU CHANG 2
B22: 02-0002 | C22: 1540056.87 | D22: -308011.37 | E22: 1232045.5 | F22: 0404-000712-01-9
B23: WONG YIN CHONG - 02-0002
B25: 02-0008 | C25: 212216.64 | D25: -42443.33 | E25: 169773.31 | F25: 0404-000712-01-9
B26: LEONG OI KWAN - 02-0008
B28: 02-0021 | C28: 519216.45 | D28: -103843.29 | E28: 415373.16 | F28: 0404-000712-01-9
B29: DEEMWELL INVESTMENT LIMITED - 02-0021
B31: 02-0023 | C31: 1075728.06 | D31: -215145.61 | E31: 860582.45 | F31: 0404-000712-01-9
B32: WASLI BIN MOHD SAID - 02-0023
B34: 02-0025 | C34: 660358.75 | D34: -132071.75 | E34: 528287 | F34: 0404-000712-01-9
B35: RATNAWATI BINTI WASLI - 02-0025
B37: 02-0062 | C37: 132771.01 | D37: -26554.2 | E37: 106216.81 | F37: 0404-000712-01-9
B38: TEH LEE BENG 2 - 02-0062
B40: 02-0068 | C40: 604766.99 | D40: -120953.4 | E40: 483813.59 | F40: 0404-000712-01-9
B41: TEKNOWISE SDN BHD(02-0068)
B43: 02-0070 | C43: 140069.44 | D43: -28013.89 | E43: 112055.55 | F43: 0404-000712-01-9
B44: YEE CHOY KAI
B46: 05-0005 | C46: 720489.04 | D46: -144097.81 | E46: 576391.23 | F46: 0404-000712-01-9
B47: TEKNOWISE SDN BHD
B49: 16-0001 | C49: 31655.35 | D49: -6331.07 | E49: 25324.28 | F49: 0404-000712-01-9
B50: TEKNOWISE SDN BHD(16-0001)
B52: 16-0002 | C52: 2790.77 | D52: -558.15 | E52: 2232.62 | F52: 0404-000712-01-9
B53: YAP NEAN TSYR
B55: 16-0003 | C55: 3711.85 | D55: -742.37 | E55: 2969.48 | F55: 0404-000712-01-9
B56: GUAN NYA CHIN (16-0003)
B58: 17-0001 | C58: 4465.4 | D58: -893.08 | E58: 3572.32 | F58: 0404-000712-01-9
B59: YAP DYI GIAN
B61: 20-0002 | C61: 90202.83 | D61: -18040.57 | E61: 72162.26 | F61: 0404-000712-01-9
B62: ER HUIKIE
C64: =SUM(C7:C63) -> 11125745 | D64: =SUM(D7:D63) -> -2225149 | E64: 8900596

Sheet Output
A4: FundCode | B4: Asset Acc Type | C4: GL Code | D4: Debit Amount | E4: Credit Amount | F4: Description | G4: qCurrencyCode
A5: 01-0001 | B5: 000 | C5: 500000 | D5: 559480.19 | F5: IDR INTEREST | G5: IDR
A6: 01-0001 | B6: 000 | C6: 999999 | E6: 559480.19 | F6: IDR INTEREST | G6: IDR
A7: 01-0001 | B7: 000 | C7: 999999 | D7: 153.97 | F7: IDR INTEREST | G7: MYR
A8: 01-0001 | B8: 000 | C8: 636002 | E8: 192.46 | F8: IDR INTEREST | G8: MYR
A9: 01-0001 | B9: 000 | C9: 710130 | D9: 38.49 | F9: IDR INTEREST | G9: MYR
A10: 01-0007 | B10: 000 | C10: 500000 | D10: 63978.9 | F10: IDR INTEREST | G10: IDR
A11: 01-0007 | B11: 000 | C11: 999999 | E11: 63978.9 | F11: IDR INTEREST | G11: IDR
A12: 01-0007 | B12: 000 | C12: 999999 | D12: 17.61 | F12: IDR INTEREST | G12: MYR
A13: 01-0007 | B13: 000 | C13: 636002 | E13: 22.01 | F13: IDR INTEREST | G13: MYR
A14: 01-0007 | B14: 000 | C14: 710130 | D14: 4.4 | F14: IDR INTEREST | G14: MYR
A15: 01-0019 | B15: 000 | C15: 500000 | D15: 2170093.02 | F15: IDR INTEREST | G15: IDR
A16: 01-0019 | B16: 000 | C16: 999999 | E16: 2170093.02 | F16: IDR INTEREST | G16: IDR
A17: 01-0019 | B17: 000 | C17: 999999 | D17: 597.21 | F17: IDR INTEREST | G17: MYR
A18: 01-0019 | B18: 000 | C18: 636002 | E18: 746.51 | F18: IDR INTEREST | G18: MYR
A19: 01-0019 | B19: 000 | C19: 710130 | D19: 149.3 | F19: IDR INTEREST | G19: MYR
A20: 01-0028 | B20: 000 | C20: 500000 | D20: 606719.23 | F20: IDR INTEREST | G20: IDR
A21: 01-0028 | B21: 000 | C21: 999999 | E21: 606719.23 | F21: IDR INTEREST | G21: IDR
A22: 01-0028 | B22: 000 | C22: 999999 | D22: 166.97 | F22: IDR INTEREST | G22: MYR
A23: 01-0028 | B23: 000 | C23: 636002 | E23: 208.71 | F23: IDR INTEREST | G23: MYR
A24: 01-0028 | B24: 000 | C24: 710130 | D24: 41.74 | F24: IDR INTEREST | G24: MYR
A25: 01-0029 | B25: 000 | C25: 500000 | D25: 909525.1 | F25: IDR INTEREST | G25: IDR
A26: 01-0029 | B26: 000 | C26: 999999 | E26: 909525.1 | F26: IDR INTEREST | G26: IDR
A27: 01-0029 | B27: 000 | C27: 999999 | D27: 250.3 | F27: IDR INTEREST | G27: MYR
A28: 01-0029 | B28: 000 | C28: 636002 | E28: 312.88 | F28: IDR INTEREST | G28: MYR
A29: 01-0029 | B29: 000 | C29: 710130 | D29: 62.58 | F29: IDR INTEREST | G29: MYR
A30: 02-0002 | B30: 000 | C30: 500000 | D30: 1232045.5 | F30: IDR INTEREST | G30: IDR
A31: 02-0002 | B31: 000 | C31: 999999 | E31: 1232045.5 | F31: IDR INTEREST | G31: IDR
A32: 02-0002 | B32: 000 | C32: 999999 | D32: 339.06 | F32: IDR INTEREST | G32: MYR
A33: 02-0002 | B33: 000 | C33: 636002 | E33: 423.82 | F33: IDR INTEREST | G33: MYR
A34: 02-0002 | B34: 000 | C34: 710130 | D34: 84.76 | F34: IDR INTEREST | G34: MYR
A35: 02-0008 | B35: 000 | C35: 500000 | D35: 169773.31 | F35: IDR INTEREST | G35: IDR
A36: 02-0008 | B36: 000 | C36: 999999 | E36: 169773.31 | F36: IDR INTEREST | G36: IDR
A37: 02-0008 | B37: 000 | C37: 999999 | D37: 46.72 | F37: IDR INTEREST | G37: MYR
A38: 02-0008 | B38: 000 | C38: 636002 | E38: 58.4 | F38: IDR INTEREST | G38: MYR
A39: 02-0008 | B39: 000 | C39: 710130 | D39: 11.68 | F39: IDR INTEREST | G39: MYR
A40: 02-0021 | B40: 000 | C40: 500000 | D40: 415373.16 | F40: IDR INTEREST | G40: IDR
A41: 02-0021 | B41: 000 | C41: 999999 | E41: 415373.16 | F41: IDR INTEREST | G41: IDR
A42: 02-0021 | B42: 000 | C42: 999999 | D42: 114.31 | F42: IDR INTEREST | G42: MYR
A43: 02-0021 | B43: 000 | C43: 636002 | E43: 142.89 | F43: IDR INTEREST | G43: MYR
A44: 02-0021 | B44: 000 | C44: 710130 | D44: 28.58 | F44: IDR INTEREST | G44: MYR
A45: 02-0023 | B45: 000 | C45: 500000 | D45: 860582.45 | F45: IDR INTEREST | G45: IDR
A46: 02-0023 | B46: 000 | C46: 999999 | E46: 860582.45 | F46: IDR INTEREST | G46: IDR
A47: 02-0023 | B47: 000 | C47: 999999 | D47: 236.83 | F47: IDR INTEREST | G47: MYR
A48: 02-0023 | B48: 000 | C48: 636002 | E48: 296.04 | F48: IDR INTEREST | G48: MYR
A49: 02-0023 | B49: 000 | C49: 710130 | D49: 59.21 | F49: IDR INTEREST | G49: MYR
A50: 02-0025 | B50: 000 | C50: 500000 | D50: 528287 | F50: IDR INTEREST | G50: IDR
A51: 02-0025 | B51: 000 | C51: 999999 | E51: 528287 | F51: IDR INTEREST | G51: IDR
A52: 02-0025 | B52: 000 | C52: 999999 | D52: 145.38 | F52: IDR INTEREST | G52: MYR
A53: 02-0025 | B53: 000 | C53: 636002 | E53: 181.73 | F53: IDR INTEREST | G53: MYR
A54: 02-0025 | B54: 000 | C54: 710130 | D54: 36.35 | F54: IDR INTEREST | G54: MYR
A55: 02-0062 | B55: 000 | C55: 500000 | D55: 106216.81 | F55: IDR INTEREST | G55: IDR
A56: 02-0062 | B56: 000 | C56: 999999 | E56: 106216.81 | F56: IDR INTEREST | G56: IDR
A57: 02-0062 | B57: 000 | C57: 999999 | D57: 29.23 | F57: IDR INTEREST | G57: MYR
A58: 02-0062 | B58: 000 | C58: 636002 | E58: 36.54 | F58: IDR INTEREST | G58: MYR
A59: 02-0062 | B59: 000 | C59: 710130 | D59: 7.31 | F59: IDR INTEREST | G59: MYR
A60: 02-0068 | B60: 000 | C60: 500000 | D60: 483813.59 | F60: IDR INTEREST | G60: IDR
A61: 02-0068 | B61: 000 | C61: 999999 | E61: 483813.59 | F61: IDR INTEREST | G61: IDR
A62: 02-0068 | B62: 000 | C62: 999999 | D62: 133.14 | F62: IDR INTEREST | G62: MYR
A63: 02-0068 | B63: 000 | C63: 636002 | E63: 166.43 | F63: IDR INTEREST | G63: MYR
A64: 02-0068 | B64: 000 | C64: 710130 | D64: 33.29 | F64: IDR INTEREST | G64: MYR
A65: 02-0070 | B65: 000 | C65: 500000 | D65: 112055.55 | F65: IDR INTEREST | G65: IDR
A66: 02-0070 | B66: 000 | C66: 999999 | E66: 112055.55 | F66: IDR INTEREST | G66: IDR
A67: 02-0070 | B67: 000 | C67: 999999 | D67: 30.84 | F67: IDR INTEREST | G67: MYR
A68: 02-0070 | B68: 000 | C68: 636002 | E68: 38.55 | F68: IDR INTEREST | G68: MYR
A69: 02-0070 | B69: 000 | C69: 710130 | D69: 7.71 | F69: IDR INTEREST | G69: MYR
A70: 05-0005 | B70: 000 | C70: 500000 | D70: 576391.23 | F70: IDR INTEREST | G70: IDR
A71: 05-0005 | B71: 000 | C71: 999999 | E71: 576391.23 | F71: IDR INTEREST | G71: IDR
A72: 05-0005 | B72: 000 | C72: 999999 | D72: 158.62 | F72: IDR INTEREST | G72: MYR
A73: 05-0005 | B73: 000 | C73: 636002 | E73: 198.28 | F73: IDR INTEREST | G73: MYR
A74: 05-0005 | B74: 000 | C74: 710130 | D74: 39.66 | F74: IDR INTEREST | G74: MYR
A75: 16-0001 | B75: 000 | C75: 500000 | D75: 25324.28 | F75: IDR INTEREST | G75: IDR
A76: 16-0001 | B76: 000 | C76: 999999 | E76: 25324.28 | F76: IDR INTEREST | G76: IDR
A77: 16-0001 | B77: 000 | C77: 999999 | D77: 6.97 | F77: IDR INTEREST | G77: MYR
A78: 16-0001 | B78: 000 | C78: 636002 | E78: 8.71 | F78: IDR INTEREST | G78: MYR
A79: 16-0001 | B79: 000 | C79: 710130 | D79: 1.74 | F79: IDR INTEREST | G79: MYR
A80: 16-0002 | B80: 000 | C80: 500000 | D80: 2232.62 | F80: IDR INTEREST | G80: IDR
A81: 16-0002 | B81: 000 | C81: 999999 | E81: 2232.62 | F81: IDR INTEREST | G81: IDR
A82: 16-0002 | B82: 000 | C82: 999999 | D82: 0.62 | F82: IDR INTEREST | G82: MYR
A83: 16-0002 | B83: 000 | C83: 636002 | E83: 0.77 | F83: IDR INTEREST | G83: MYR
A84: 16-0002 | B84: 000 | C84: 710130 | D84: 0.15 | F84: IDR INTEREST | G84: MYR
A85: 16-0003 | B85: 000 | C85: 500000 | D85: 2969.48 | F85: IDR INTEREST | G85: IDR
A86: 16-0003 | B86: 000 | C86: 999999 | E86: 2969.48 | F86: IDR INTEREST | G86: IDR
A87: 16-0003 | B87: 000 | C87: 999999 | D87: 0.82 | F87: IDR INTEREST | G87: MYR
A88: 16-0003 | B88: 000 | C88: 636002 | E88: 1.02 | F88: IDR INTEREST | G88: MYR
A89: 16-0003 | B89: 000 | C89: 710130 | D89: 0.2 | F89: IDR INTEREST | G89: MYR
A90: 17-0001 | B90: 000 | C90: 500000 | D90: 3572.32 | F90: IDR INTEREST | G90: IDR
A91: 17-0001 | B91: 000 | C91: 999999 | E91: 3572.32 | F91: IDR INTEREST | G91: IDR
A92: 17-0001 | B92: 000 | C92: 999999 | D92: 0.98 | F92: IDR INTEREST | G92: MYR
A93: 17-0001 | B93: 000 | C93: 636002 | E93: 1.23 | F93: IDR INTEREST | G93: MYR
A94: 17-0001 | B94: 000 | C94: 710130 | D94: 0.25 | F94: IDR INTEREST | G94: MYR
A95: 20-0002 | B95: 000 | C95: 500000 | D95: 72162.26 | F95: IDR INTEREST | G95: IDR
A96: 20-0002 | B96: 000 | C96: 999999 | E96: 72162.26 | F96: IDR INTEREST | G96: IDR
A97: 20-0002 | B97: 000 | C97: 999999 | D97: 19.86 | F97: IDR INTEREST | G97: MYR
A98: 20-0002 | B98: 000 | C98: 636002 | E98: 24.82 | F98: IDR INTEREST | G98: MYR
A99: 20-0002 | B99: 000 | C99: 710130 | D99: 4.96 | F99: IDR INTEREST | G99: MYR

Sheet Data
A1: qBankAccNo | B1: TBDate | C1: qFundCode | D1: qCurrencyCode | E1: FundCurrency | F1: Exchange Rate | G1: ShortGL | H1: Value | I1: FundName
A2: 0404-000712-01-9 | B2: 10/31/2018 | C2: 01-0001 | D2: IDR | E2: MYR | F2: 3633.72093 | G2: 500000 | H2: 823432905.4 | I2: DOREEN EMELDA FONG - 01-0001
A3: 0404-000712-01-9 | B3: 10/31/2018 | C3: 01-0007 | D3: IDR | E3: MYR | F3: 3633.72093 | G3: 500000 | H3: 94163001.83 | I3: EE CHONG KOK - 01-0007
A4: 0404-000712-01-9 | B4: 10/31/2018 | C4: 01-0019 | D4: IDR | E4: MYR | F4: 3633.72093 | G4: 500000 | H4: 3193903945 | I4: LAM SOO HENG @ LAM SEO HAN - 01-0019
A5: 0404-000712-01-9 | B5: 10/31/2018 | C5: 01-0028 | D5: IDR | E5: MYR | F5: 3633.72093 | G5: 500000 | H5: 892958477.9 | I5: LOO KOK YUEN - 01-0028
A6: 0404-000712-01-9 | B6: 10/31/2018 | C6: 01-0029 | D6: IDR | E6: MYR | F6: 3633.72093 | G6: 500000 | H6: 1338622711 | I6: LIM PAU CHANG 2
A7: 0404-000712-01-9 | B7: 10/31/2018 | C7: 02-0002 | D7: IDR | E7: MYR | F7: 3633.72093 | G7: 500000 | H7: 1813302447 | I7: WONG YIN CHONG - 02-0002
A8: 0404-000712-01-9 | B8: 10/31/2018 | C8: 02-0008 | D8: IDR | E8: MYR | F8: 3633.72093 | G8: 500000 | H8: 249869318.1 | I8: LEONG OI KWAN - 02-0008
A9: 0404-000712-01-9 | B9: 10/31/2018 | C9: 02-0021 | D9: IDR | E9: MYR | F9: 3633.72093 | G9: 500000 | H9: 611338763 | I9: DEEMWELL INVESTMENT LIMITED - 02-0021
A10: 0404-000712-01-9 | B10: 10/31/2018 | C10: 02-0023 | D10: IDR | E10: MYR | F10: 3633.72093 | G10: 500000 | H10: 1266589803 | I10: WASLI BIN MOHD SAID - 02-0023
A11: 0404-000712-01-9 | B11: 10/31/2018 | C11: 02-0025 | D11: IDR | E11: MYR | F11: 3633.72093 | G11: 500000 | H11: 777523329.5 | I11: RATNAWATI BINTI WASLI - 02-0025
A12: 0404-000712-01-9 | B12: 10/31/2018 | C12: 02-0062 | D12: IDR | E12: MYR | F12: 3633.72093 | G12: 500000 | H12: 156327987.6 | I12: TEH LEE BENG 2 - 02-0062
A13: 0404-000712-01-9 | B13: 10/31/2018 | C13: 02-0068 | D13: IDR | E13: MYR | F13: 3633.72093 | G13: 500000 | H13: 712068160.8 | I13: TEKNOWISE SDN BHD(02-0068)
A14: 0404-000712-01-9 | B14: 10/31/2018 | C14: 02-0070 | D14: IDR | E14: MYR | F14: 3633.72093 | G14: 500000 | H14: 164921355.1 | I14: YEE CHOY KAI
A15: 0404-000712-01-9 | B15: 10/31/2018 | C15: 05-0005 | D15: IDR | E15: MYR | F15: 3633.72093 | G15: 500000 | H15: 848322269 | I15: TEKNOWISE SDN BHD
A16: 0404-000712-01-9 | B16: 10/31/2018 | C16: 16-0001 | D16: IDR | E16: MYR | F16: 3633.72093 | G16: 500000 | H16: 37271817.95 | I16: TEKNOWISE SDN BHD(16-0001)
A17: 0404-000712-01-9 | B17: 10/31/2018 | C17: 16-0002 | D17: IDR | E17: MYR | F17: 3633.72093 | G17: 500000 | H17: 3285926.96 | I17: YAP NEAN TSYR
A18: 0404-000712-01-9 | B18: 10/31/2018 | C18: 16-0003 | D18: IDR | E18: MYR | F18: 3633.72093 | G18: 500000 | H18: 4370432.52 | I18: GUAN NYA CHIN (16-0003)
A19: 0404-000712-01-9 | B19: 10/31/2018 | C19: 17-0001 | D19: IDR | E19: MYR | F19: 3633.72093 | G19: 500000 | H19: 5257678.75 | I19: YAP DYI GIAN
A20: 0404-000712-01-9 | B20: 10/31/2018 | C20: 20-0002 | D20: IDR | E20: MYR | F20: 3633.72093 | G20: 500000 | H20: 106207121.9 | I20: ER HUIKIE

Sheet InDropList (hidden)
A1: 037-003652-8
A2: 0404-000712-01-9
A3: 0404-000712-02-9
A4: 0710-000199-01-1
A5: 0710-000199-03-1
A6: 0710-000199-04-1
A7: 0710-000223-01-0
A8: 0-862082-028
A9: 0-862699-009(SGD)
A10: 0-862699-017(HKD)
A11: 0-862699-025(IDR)
A12: 0-862699-033(THB)
A13: 0-862699-041(PHP)
A14: 0-862699-092(USD)
A15: 5107495799(KRW)
A16: 5457740001(TWD)
A17: 8000313014
A18: 8000313026
A19: 8008041656(MYR-CIMB)
A20: 800804169440(USD)
A21: 800804173702(SGD)
A22: 862082-001
